[Event "Titled Tuesday Blitz March 29 Late 2022"]
[White "Vasquez Schroeder, Rodrigo"]
[Black "Pakleza, Zbigniew"]
[WhiteFideId "3400042"]
[BlackFideId "1119290"]
[WhiteElo "2561"]
[BlackElo "2467"]
[Result "1/2-1/2"]
[Round "09"]
[TimeControl "180+1"]
[Date "2022.03.29"]
[WhiteClock "0:00:49"]
[BlackClock "0:00:06"]

1. e4 {[%clk 0:02:56]}  d6 {[%clk 0:02:54]} 2. d4 {[%clk 0:02:56]}  Nf6 {[%clk 0:02:54]} 3. Nc3 {[%clk 0:02:56]}  c6 {[%clk 0:02:55]} 4. a4 {[%clk 0:02:55]}  Nbd7 {[%clk 0:02:55]} 5. Nf3 {[%clk 0:02:54]}  e5 {[%clk 0:02:55]} 6. a5 {[%clk 0:02:48]}  Be7 {[%clk 0:02:53]} 7. g3 {[%clk 0:02:47]}  O-O {[%clk 0:02:53]} 8. Bg2 {[%clk 0:02:48]}  Re8 {[%clk 0:02:48]} 9. O-O {[%clk 0:02:47]}  Bf8 {[%clk 0:02:49]} 10. Re1 {[%clk 0:02:46]}  Qc7 {[%clk 0:02:42]} 11. b3 {[%clk 0:02:44]}  Rb8 {[%clk 0:02:11]} 12. Bb2 {[%clk 0:02:39]}  b5 {[%clk 0:02:11]} 13. axb6 {[%clk 0:02:39]}  axb6 {[%clk 0:02:12]} 14. Qd2 {[%clk 0:02:29]}  b5 {[%clk 0:02:10]} 15. Rad1 {[%clk 0:02:23]}  Nb6 {[%clk 0:01:38]} 16. h3 {[%clk 0:02:16]}  Bb7 {[%clk 0:01:29]} 17. dxe5 {[%clk 0:02:12]}  dxe5 {[%clk 0:01:29]} 18. Nh4 {[%clk 0:02:12]}  g6 {[%clk 0:01:17]} 19. Qg5 {[%clk 0:02:00]}  Bg7 {[%clk 0:01:14]} 20. Nb1 {[%clk 0:01:54]}  h6 {[%clk 0:01:11]} 21. Qe3 {[%clk 0:01:54]}  Rbd8 {[%clk 0:01:07]} 22. Rxd8 {[%clk 0:01:50]}  Rxd8 {[%clk 0:01:07]} 23. Bxe5 {[%clk 0:01:47]}  Qxe5 {[%clk 0:01:08]} 24. Qxb6 {[%clk 0:01:47]}  Qe7 {[%clk 0:00:42]} 25. e5 {[%clk 0:01:40]}  Nd5 {[%clk 0:00:39]} 26. Qa7 {[%clk 0:01:39]}  Bc8 {[%clk 0:00:29]} 27. Qxe7 {[%clk 0:01:33]}  Nxe7 {[%clk 0:00:30]} 28. f4 {[%clk 0:01:32]}  g5 {[%clk 0:00:28]} 29. fxg5 {[%clk 0:01:28]}  hxg5 {[%clk 0:00:29]} 30. Nf3 {[%clk 0:01:28]}  g4 {[%clk 0:00:29]} 31. hxg4 {[%clk 0:01:27]}  Bxg4 {[%clk 0:00:30]} 32. Kf2 {[%clk 0:01:13]}  Bf5 {[%clk 0:00:25]} 33. c4 {[%clk 0:01:08]}  b4 {[%clk 0:00:22]} 34. Nbd2 {[%clk 0:01:07]}  Rd3 {[%clk 0:00:15]} 35. Re3 {[%clk 0:01:04]}  Rd8 {[%clk 0:00:10]} 36. Ne4 {[%clk 0:01:05]}  Ra8 {[%clk 0:00:06]} 37. Nf6+ {[%clk 0:00:59]}  Kf8 {[%clk 0:00:05]} 38. g4 {[%clk 0:01:00]}  Be6 {[%clk 0:00:05]} 39. Nd4 {[%clk 0:01:00]}  Ra2+ {[%clk 0:00:05]} 40. Kg3 {[%clk 0:01:00]}  Bh6 {[%clk 0:00:05]} 41. g5 {[%clk 0:01:00]}  Bxg5 {[%clk 0:00:04]} 42. Nh7+ {[%clk 0:01:00]}  Kg7 {[%clk 0:00:04]} 43. Nxg5 {[%clk 0:01:01]}  Bd7 {[%clk 0:00:05]} 44. e6 {[%clk 0:01:00]}  fxe6 {[%clk 0:00:04]} 45. Ngxe6+ {[%clk 0:01:00]}  Bxe6 {[%clk 0:00:05]} 46. Nxe6+ {[%clk 0:01:00]}  Kf6 {[%clk 0:00:05]} 47. Nc5 {[%clk 0:00:59]}  Nf5+ {[%clk 0:00:05]} 48. Kf4 {[%clk 0:00:55]}  Nxe3 {[%clk 0:00:06]} 49. Bxc6 {[%clk 0:00:55]}  Nc2 {[%clk 0:00:06]} 50. Be4 {[%clk 0:00:54]}  Nd4 {[%clk 0:00:05]} 51. Bd3 {[%clk 0:00:55]}  Ne6+ {[%clk 0:00:05]} 52. Nxe6 {[%clk 0:00:54]}  Kxe6 {[%clk 0:00:06]} 53. Ke4 {[%clk 0:00:55]}  Rh2 {[%clk 0:00:05]} 54. Kd4 {[%clk 0:00:54]}  Kd6 {[%clk 0:00:04]} 55. c5+ {[%clk 0:00:53]}  Kc6 {[%clk 0:00:05]} 56. Be4+ {[%clk 0:00:54]}  Kb5 {[%clk 0:00:05]} 57. Bd3+ {[%clk 0:00:54]}  Kc6 {[%clk 0:00:06]} 58. Be4+ {[%clk 0:00:52]}  Kb5 {[%clk 0:00:05]} 59. Bd3+ {[%clk 0:00:49]}  Kc6 {[%clk 0:00:06]} 1/2-1/2


[Site "https://www.chess.com"]

[Event "Titled Tuesday Blitz March 29 Late 2022"]
[White "Vine, Elzbieta"]
[Black "Cagara, Paulina"]
[WhiteFideId "1119320"]
[BlackFideId "1124870"]
[WhiteElo "1827"]
[BlackElo "1780"]
[Result "0-1"]
[Round "09"]
[TimeControl "180+1"]
[Date "2022.03.30"]
[WhiteClock "0:00:01"]
[BlackClock "0:01:24"]

1. e4 {[%clk 0:03:00]}  c6 {[%clk 0:02:59]} 2. d4 {[%clk 0:02:57]}  d5 {[%clk 0:02:59]} 3. e5 {[%clk 0:02:56]}  c5 {[%clk 0:02:56]} 4. c3 {[%clk 0:02:55]}  Nc6 {[%clk 0:02:55]} 5. Be3 {[%clk 0:02:42]}  Bf5 {[%clk 0:02:53]} 6. f4 {[%clk 0:02:32]}  e6 {[%clk 0:02:51]} 7. Nf3 {[%clk 0:02:29]}  Bg4 {[%clk 0:02:48]} 8. h3 {[%clk 0:02:26]}  Bxf3 {[%clk 0:02:46]} 9. Qxf3 {[%clk 0:02:25]}  cxd4 {[%clk 0:02:47]} 10. cxd4 {[%clk 0:02:24]}  Nge7 {[%clk 0:02:44]} 11. Be2 {[%clk 0:02:18]}  Nf5 {[%clk 0:02:43]} 12. O-O {[%clk 0:02:13]}  Nfxd4 {[%clk 0:02:31]} 13. Qf2 {[%clk 0:01:57]}  Nxe2+ {[%clk 0:02:30]} 14. Qxe2 {[%clk 0:01:56]}  g6 {[%clk 0:02:30]} 15. f5 {[%clk 0:01:52]}  gxf5 {[%clk 0:02:29]} 16. Nc3 {[%clk 0:01:38]}  Be7 {[%clk 0:02:19]} 17. Qh5 {[%clk 0:01:30]}  Nxe5 {[%clk 0:01:57]} 18. Rad1 {[%clk 0:01:08]}  O-O {[%clk 0:01:50]} 19. Bh6 {[%clk 0:00:25]}  Ng6 {[%clk 0:01:43]} 20. Bxf8 {[%clk 0:00:22]}  Qxf8 {[%clk 0:01:43]} 21. Ne2 {[%clk 0:00:15]}  Rc8 {[%clk 0:01:38]} 22. Nf4 {[%clk 0:00:12]}  Bd6 {[%clk 0:01:30]} 23. Nxg6 {[%clk 0:00:04]}  hxg6 {[%clk 0:01:30]} 24. Qg5 {[%clk 0:00:03]}  Qd8 {[%clk 0:01:26]} 25. Rd4 {[%clk 0:00:01]}  Qxg5 {[%clk 0:01:24]} 0-1


[Site "https://www.chess.com"]

[Event "Titled Tuesday Blitz March 29 Late 2022"]
[White "Arabidze, Meri"]
[Black "Tiarks, Jann-Christian"]
[WhiteFideId "13604040"]
[BlackFideId "12951595"]
[WhiteElo "2335"]
[BlackElo "2176"]
[Result "1-0"]
[Round "10"]
[TimeControl "180+1"]
[Date "2022.03.29"]
[WhiteClock "0:01:14"]
[BlackClock "0:01:00"]

1. Nf3 {[%clk 0:03:00]}  c5 {[%clk 0:02:56]} 2. c4 {[%clk 0:03:00]}  Nc6 {[%clk 0:02:56]} 3. e3 {[%clk 0:03:01]}  g6 {[%clk 0:02:54]} 4. d4 {[%clk 0:03:01]}  cxd4 {[%clk 0:02:54]} 5. exd4 {[%clk 0:03:02]}  Bg7 {[%clk 0:02:53]} 6. d5 {[%clk 0:03:02]}  Nb8 {[%clk 0:02:53]} 7. Nc3 {[%clk 0:03:02]}  d6 {[%clk 0:02:53]} 8. Be2 {[%clk 0:02:59]}  Nf6 {[%clk 0:02:54]} 9. O-O {[%clk 0:02:59]}  O-O {[%clk 0:02:54]} 10. Re1 {[%clk 0:02:59]}  e5 {[%clk 0:02:53]} 11. dxe6 {[%clk 0:02:58]}  Bxe6 {[%clk 0:02:52]} 12. Nd4 {[%clk 0:02:56]}  Nc6 {[%clk 0:02:45]} 13. Nxe6 {[%clk 0:02:52]}  fxe6 {[%clk 0:02:45]} 14. Bf3 {[%clk 0:02:51]}  e5 {[%clk 0:02:40]} 15. Nb5 {[%clk 0:02:48]}  e4 {[%clk 0:02:20]} 16. Bxe4 {[%clk 0:02:43]}  Nxe4 {[%clk 0:02:19]} 17. Rxe4 {[%clk 0:02:39]}  a6 {[%clk 0:02:18]} 18. Nxd6 {[%clk 0:02:25]}  Qf6 {[%clk 0:02:14]} 19. Qd5+ {[%clk 0:02:22]}  Kh8 {[%clk 0:02:14]} 20. Rf4 {[%clk 0:02:21]}  Qe7 {[%clk 0:01:55]} 21. Be3 {[%clk 0:01:53]}  Ne5 {[%clk 0:01:46]} 22. Rxf8+ {[%clk 0:01:40]}  Rxf8 {[%clk 0:01:45]} 23. h3 {[%clk 0:01:39]}  Rd8 {[%clk 0:01:38]} 24. c5 {[%clk 0:01:38]}  Rf8 {[%clk 0:01:38]} 25. Qxb7 {[%clk 0:01:34]}  Qe6 {[%clk 0:01:28]} 26. Qxa6 {[%clk 0:01:25]}  Qd5 {[%clk 0:01:06]} 27. Qe2 {[%clk 0:01:21]}  Nd7 {[%clk 0:01:02]} 28. Rd1 {[%clk 0:01:16]}  Qxa2 {[%clk 0:01:00]} 29. c6 {[%clk 0:01:16]}  Ne5 {[%clk 0:01:00]} 30. c7 {[%clk 0:01:14]} 1-0


[Site "https://www.chess.com"]

[Event "Titled Tuesday Blitz March 29 Late 2022"]
[White "Cagara, Paulina"]
[Black "Ricaurte Lopez, Juan Carlos"]
[WhiteFideId "1124870"]
[BlackFideId "3600327"]
[WhiteElo "1780"]
[BlackElo "2209"]
[Result "0-1"]
[Round "10"]
[TimeControl "180+1"]
[Date "2022.03.30"]
[WhiteClock "0:01:14"]
[BlackClock "0:00:33"]

1. e4 {[%clk 0:03:00]}  e5 {[%clk 0:02:59]} 2. Nf3 {[%clk 0:03:00]}  Nc6 {[%clk 0:02:58]} 3. c3 {[%clk 0:02:59]}  d5 {[%clk 0:02:56]} 4. Qa4 {[%clk 0:02:59]}  dxe4 {[%clk 0:02:52]} 5. Nxe5 {[%clk 0:02:58]}  Bd7 {[%clk 0:02:52]} 6. Nxd7 {[%clk 0:02:57]}  Qxd7 {[%clk 0:02:51]} 7. Qxe4+ {[%clk 0:02:57]}  Be7 {[%clk 0:02:51]} 8. Bb5 {[%clk 0:02:57]}  Nf6 {[%clk 0:02:45]} 9. Bxc6 {[%clk 0:02:57]}  bxc6 {[%clk 0:02:44]} 10. Qe2 {[%clk 0:02:55]}  O-O {[%clk 0:02:44]} 11. O-O {[%clk 0:02:52]}  c5 {[%clk 0:02:38]} 12. d3 {[%clk 0:02:49]}  Rad8 {[%clk 0:02:36]} 13. Bf4 {[%clk 0:02:46]}  Qxd3 {[%clk 0:02:25]} 14. Qxd3 {[%clk 0:02:45]}  Rxd3 {[%clk 0:02:23]} 15. Bxc7 {[%clk 0:02:45]}  c4 {[%clk 0:02:21]} 16. Be5 {[%clk 0:02:36]}  Bc5 {[%clk 0:02:14]} 17. Na3 {[%clk 0:02:32]}  Bxa3 {[%clk 0:02:11]} 18. bxa3 {[%clk 0:02:32]}  Rfd8 {[%clk 0:02:03]} 19. Bxf6 {[%clk 0:02:30]}  gxf6 {[%clk 0:02:02]} 20. Rab1 {[%clk 0:02:17]}  Rxc3 {[%clk 0:02:00]} 21. a4 {[%clk 0:02:15]}  Ra3 {[%clk 0:01:58]} 22. Rb4 {[%clk 0:02:15]}  c3 {[%clk 0:01:57]} 23. Rc4 {[%clk 0:02:12]}  Rd2 {[%clk 0:01:54]} 24. h4 {[%clk 0:02:07]}  c2 {[%clk 0:01:54]} 25. Re1 {[%clk 0:02:02]}  Rxa2 {[%clk 0:01:45]} 26. Kh2 {[%clk 0:01:57]}  Rxf2 {[%clk 0:01:41]} 27. Re8+ {[%clk 0:01:42]}  Kg7 {[%clk 0:01:39]} 28. Rg4+ {[%clk 0:01:41]}  Kh6 {[%clk 0:01:38]} 29. Rc8 {[%clk 0:01:36]}  Rf1 {[%clk 0:01:25]} 30. Rgc4 {[%clk 0:01:32]}  c1=Q {[%clk 0:01:11]} 31. Rxc1 {[%clk 0:01:31]}  Rxc1 {[%clk 0:01:11]} 32. Rxc1 {[%clk 0:01:32]}  Rxa4 {[%clk 0:01:10]} 33. Rc7 {[%clk 0:01:31]}  Kg6 {[%clk 0:01:08]} 34. g3 {[%clk 0:01:29]}  h5 {[%clk 0:01:07]} 35. Kh3 {[%clk 0:01:29]}  a5 {[%clk 0:01:05]} 36. Ra7 {[%clk 0:01:28]}  Ra3 {[%clk 0:01:04]} 37. Ra6 {[%clk 0:01:27]}  Kf5 {[%clk 0:01:02]} 38. Kg2 {[%clk 0:01:24]}  Kg4 {[%clk 0:00:58]} 39. Rxf6 {[%clk 0:01:23]}  Rxg3+ {[%clk 0:00:55]} 40. Kf2 {[%clk 0:01:23]}  Rc3 {[%clk 0:00:37]} 41. Rxf7 {[%clk 0:01:20]}  Rc5 {[%clk 0:00:36]} 42. Rg7+ {[%clk 0:01:15]}  Kxh4 {[%clk 0:00:35]} 43. Kg2 {[%clk 0:01:14]}  Rg5+ {[%clk 0:00:33]} 0-1


[Site "https://www.chess.com"]

[Event "Titled Tuesday Blitz March 29 Late 2022"]
[White "Cervantes Landeiro, Thalia"]
[Black "Ambartsumova, Karina"]
[WhiteFideId "3520498"]
[BlackFideId "4166299"]
[WhiteElo "2021"]
[BlackElo "2262"]
[Result "1-0"]
[Round "10"]
[TimeControl "180+1"]
[Date "2022.03.29"]
[WhiteClock "0:00:06"]
[BlackClock "0:00:01"]

1. d4 {[%clk 0:03:00]}  Nf6 {[%clk 0:02:57]} 2. c4 {[%clk 0:03:00]}  e6 {[%clk 0:02:57]} 3. Nf3 {[%clk 0:03:00]}  c5 {[%clk 0:02:56]} 4. d5 {[%clk 0:02:59]}  exd5 {[%clk 0:02:57]} 5. cxd5 {[%clk 0:02:59]}  Bd6 {[%clk 0:02:58]} 6. Nc3 {[%clk 0:02:58]}  O-O {[%clk 0:02:58]} 7. e4 {[%clk 0:02:53]}  Re8 {[%clk 0:02:58]} 8. Nd2 {[%clk 0:02:34]}  Bc7 {[%clk 0:02:54]} 9. Bd3 {[%clk 0:02:31]}  a6 {[%clk 0:02:53]} 10. a4 {[%clk 0:02:30]}  d6 {[%clk 0:02:53]} 11. O-O {[%clk 0:02:28]}  Nbd7 {[%clk 0:02:54]} 12. f4 {[%clk 0:02:23]}  Nf8 {[%clk 0:02:46]} 13. Nc4 {[%clk 0:02:21]}  Rb8 {[%clk 0:02:40]} 14. a5 {[%clk 0:02:13]}  Ng6 {[%clk 0:02:40]} 15. e5 {[%clk 0:01:57]}  Ng4 {[%clk 0:02:09]} 16. h3 {[%clk 0:01:31]}  Nh6 {[%clk 0:01:46]} 17. exd6 {[%clk 0:01:18]}  Bxd6 {[%clk 0:01:44]} 18. f5 {[%clk 0:01:18]}  Ne5 {[%clk 0:01:37]} 19. f6 {[%clk 0:01:12]}  Nxc4 {[%clk 0:01:25]} 20. Bxh6 {[%clk 0:00:35]}  Nxb2 {[%clk 0:00:53]} 21. Bxh7+ {[%clk 0:00:20]}  Kxh7 {[%clk 0:00:54]} 22. Qh5 {[%clk 0:00:16]}  Re5 {[%clk 0:00:04]} 23. Qxf7 {[%clk 0:00:12]}  Qd7 {[%clk 0:00:01]} 24. fxg7 {[%clk 0:00:06]}  Qxf7 {[%clk 0:00:01]} 25. Rxf7 {[%clk 0:00:06]}  Bf5 {[%clk 0:00:01]} 26. Bf4 {[%clk 0:00:06]}  Bg6 {[%clk 0:00:01]} 27. Bxe5 {[%clk 0:00:05]}  Bxe5 {[%clk 0:00:02]} 28. Rf8 {[%clk 0:00:05]}  Bxc3 {[%clk 0:00:01]} 29. g8=Q+ {[%clk 0:00:02]}  Kh6 {[%clk 0:00:01]} 30. Rxb8 {[%clk 0:00:01]}  Bd4+ {[%clk 0:00:02]} 31. Kh1 {[%clk 0:00:01]}  Nd3 {[%clk 0:00:02]} 32. Qf8+ {[%clk 0:00:02]}  Kg5 {[%clk 0:00:02]} 33. Qf3 {[%clk 0:00:03]}  Nf2+ {[%clk 0:00:02]} 34. Kh2 {[%clk 0:00:03]}  Be5+ {[%clk 0:00:02]} 35. g3 {[%clk 0:00:04]}  Ne4 {[%clk 0:00:02]} 36. h4+ {[%clk 0:00:05]}  Kh6 {[%clk 0:00:02]} 37. Rh8+ {[%clk 0:00:04]}  Bxh8 {[%clk 0:00:02]} 38. Qf8+ {[%clk 0:00:04]}  Bg7 {[%clk 0:00:02]} 39. Qf4+ {[%clk 0:00:05]}  Kh7 {[%clk 0:00:02]} 40. Qc7 {[%clk 0:00:05]}  Kh6 {[%clk 0:00:02]} 41. Rf1 {[%clk 0:00:05]}  Bd4 {[%clk 0:00:02]} 42. Rf4 {[%clk 0:00:06]}  Nf6 {[%clk 0:00:02]} 43. Qe7 {[%clk 0:00:06]}  Nh5 {[%clk 0:00:01]} 44. Qf8+ {[%clk 0:00:06]} 1-0


[Site "https://www.chess.com"]

[Event "Titled Tuesday Blitz March 29 Late 2022"]
[White "De La Colina, Nicolas"]
[Black "Ronka, Erik"]
[WhiteFideId "30946921"]
[BlackFideId "505080"]
[WhiteElo "2046"]
[BlackElo "2264"]
[Result "1-0"]
[Round "10"]
[TimeControl "180+1"]
[Date "2022.03.30"]
[WhiteClock "0:00:11"]
[BlackClock "0:00:14"]

1. d4 {[%clk 0:02:43]}  d5 {[%clk 0:02:58]} 2. Nf3 {[%clk 0:02:40]}  c6 {[%clk 0:02:57]} 3. Bf4 {[%clk 0:02:37]}  Bf5 {[%clk 0:02:57]} 4. e3 {[%clk 0:02:36]}  e6 {[%clk 0:02:57]} 5. c4 {[%clk 0:02:35]}  Bd6 {[%clk 0:02:53]} 6. Bg3 {[%clk 0:02:25]}  Bxg3 {[%clk 0:02:45]} 7. hxg3 {[%clk 0:02:26]}  Nf6 {[%clk 0:02:45]} 8. Nc3 {[%clk 0:02:25]}  Nbd7 {[%clk 0:02:43]} 9. Be2 {[%clk 0:02:24]}  O-O {[%clk 0:02:42]} 10. Nh4 {[%clk 0:02:22]}  Be4 {[%clk 0:02:33]} 11. f3 {[%clk 0:02:15]}  Bg6 {[%clk 0:02:30]} 12. Nxg6 {[%clk 0:02:07]}  fxg6 {[%clk 0:02:31]} 13. Qd2 {[%clk 0:01:43]}  Qe7 {[%clk 0:02:25]} 14. f4 {[%clk 0:01:37]}  Rac8 {[%clk 0:02:23]} 15. O-O-O {[%clk 0:01:21]}  c5 {[%clk 0:02:20]} 16. Kb1 {[%clk 0:01:17]}  cxd4 {[%clk 0:02:05]} 17. Qxd4 {[%clk 0:01:18]}  Nb6 {[%clk 0:01:59]} 18. cxd5 {[%clk 0:01:14]}  exd5 {[%clk 0:01:51]} 19. Bf3 {[%clk 0:01:12]}  Rfd8 {[%clk 0:01:48]} 20. g4 {[%clk 0:00:55]}  Rc4 {[%clk 0:01:24]} 21. Qe5 {[%clk 0:00:39]}  Re8 {[%clk 0:01:04]} 22. Qxe7 {[%clk 0:00:16]}  Rxe7 {[%clk 0:01:05]} 23. g5 {[%clk 0:00:17]}  Ne4 {[%clk 0:01:05]} 24. Nxd5 {[%clk 0:00:17]}  Nxd5 {[%clk 0:00:25]} 25. Rxd5 {[%clk 0:00:18]}  Rb4 {[%clk 0:00:19]} 26. Ka1 {[%clk 0:00:11]}  Nf2 {[%clk 0:00:16]} 27. Rf1 {[%clk 0:00:11]}  Rxe3 {[%clk 0:00:14]} 28. Rxf2 {[%clk 0:00:11]} 1-0


[Site "https://www.chess.com"]

[Event "Titled Tuesday Blitz March 29 Late 2022"]
[White "Diaz Perez, Michel Alejandro"]
[Black "Yanchenko, Roman"]
[WhiteFideId "3517179"]
[BlackFideId "4137329"]
[WhiteElo "2337"]
[BlackElo "2514"]
[Result "0-1"]
[Round "10"]
[TimeControl "180+1"]
[Date "2022.03.29"]
[WhiteClock "0:00:07"]
[BlackClock "0:00:17"]

1. d4 {[%clk 0:03:00]}  d5 {[%clk 0:02:59]} 2. c4 {[%clk 0:03:01]}  c6 {[%clk 0:03:00]} 3. Nf3 {[%clk 0:03:02]}  Nf6 {[%clk 0:02:49]} 4. Qc2 {[%clk 0:03:02]}  g6 {[%clk 0:02:48]} 5. Nbd2 {[%clk 0:02:51]}  Bf5 {[%clk 0:02:47]} 6. Qb3 {[%clk 0:02:51]}  Qb6 {[%clk 0:02:47]} 7. c5 {[%clk 0:02:51]}  Qxb3 {[%clk 0:02:46]} 8. axb3 {[%clk 0:02:51]}  a6 {[%clk 0:02:46]} 9. b4 {[%clk 0:02:52]}  Nbd7 {[%clk 0:02:45]} 10. Nb3 {[%clk 0:02:47]}  Bg7 {[%clk 0:02:44]} 11. Na5 {[%clk 0:02:46]}  Ra7 {[%clk 0:02:44]} 12. Bf4 {[%clk 0:02:45]}  Nh5 {[%clk 0:02:42]} 13. Bd2 {[%clk 0:02:44]}  e5 {[%clk 0:02:41]} 14. e3 {[%clk 0:02:43]}  O-O {[%clk 0:02:37]} 15. Be2 {[%clk 0:02:41]}  Re8 {[%clk 0:02:35]} 16. h3 {[%clk 0:02:39]}  Nhf6 {[%clk 0:02:33]} 17. O-O {[%clk 0:02:36]}  Ne4 {[%clk 0:02:32]} 18. Bc3 {[%clk 0:02:34]}  Re7 {[%clk 0:02:02]} 19. Rfc1 {[%clk 0:02:14]}  Nxc3 {[%clk 0:01:59]} 20. bxc3 {[%clk 0:02:13]}  exd4 {[%clk 0:01:42]} 21. Nxd4 {[%clk 0:02:11]}  Bxd4 {[%clk 0:01:33]} 22. cxd4 {[%clk 0:02:12]}  Nf6 {[%clk 0:01:33]} 23. Ra3 {[%clk 0:02:11]}  Ra8 {[%clk 0:01:28]} 24. f3 {[%clk 0:02:09]}  Rae8 {[%clk 0:01:27]} 25. Kf2 {[%clk 0:02:09]}  Bc8 {[%clk 0:01:26]} 26. Bf1 {[%clk 0:02:05]}  h5 {[%clk 0:01:25]} 27. h4 {[%clk 0:02:04]}  Nh7 {[%clk 0:01:24]} 28. Re1 {[%clk 0:01:52]}  Nf8 {[%clk 0:01:23]} 29. Nb3 {[%clk 0:01:45]}  Ne6 {[%clk 0:01:22]} 30. Raa1 {[%clk 0:01:44]}  Kg7 {[%clk 0:01:21]} 31. Nd2 {[%clk 0:01:43]}  f6 {[%clk 0:01:20]} 32. g3 {[%clk 0:01:43]}  g5 {[%clk 0:01:20]} 33. Bd3 {[%clk 0:01:38]}  Kh6 {[%clk 0:01:14]} 34. Nb3 {[%clk 0:01:33]}  Ng7 {[%clk 0:01:08]} 35. e4 {[%clk 0:01:28]}  dxe4 {[%clk 0:01:00]} 36. fxe4 {[%clk 0:01:29]}  Be6 {[%clk 0:01:00]} 37. Nd2 {[%clk 0:01:29]}  Rd8 {[%clk 0:00:59]} 38. hxg5+ {[%clk 0:01:20]}  fxg5 {[%clk 0:00:58]} 39. Ke3 {[%clk 0:01:10]}  Red7 {[%clk 0:00:58]} 40. Nf3 {[%clk 0:01:03]}  g4 {[%clk 0:00:56]} 41. Ne5 {[%clk 0:01:03]}  Rxd4 {[%clk 0:00:55]} 42. Rf1 {[%clk 0:01:03]}  Kg5 {[%clk 0:00:48]} 43. Rab1 {[%clk 0:00:53]}  Bg8 {[%clk 0:00:26]} 44. Rf4 {[%clk 0:00:48]}  Ba2 {[%clk 0:00:19]} 45. Rb2 {[%clk 0:00:47]}  Be6 {[%clk 0:00:18]} 46. Be2 {[%clk 0:00:41]}  Ne8 {[%clk 0:00:18]} 47. Bd3 {[%clk 0:00:34]}  Nf6 {[%clk 0:00:17]} 48. Rbf2 {[%clk 0:00:32]}  Nh7 {[%clk 0:00:11]} 49. Rf5+ {[%clk 0:00:18]}  Bxf5 {[%clk 0:00:10]} 50. Rxf5+ {[%clk 0:00:19]}  Kh6 {[%clk 0:00:11]} 51. Nf7+ {[%clk 0:00:20]}  Kg7 {[%clk 0:00:11]} 52. Nxd8 {[%clk 0:00:20]}  Rxd8 {[%clk 0:00:10]} 53. e5 {[%clk 0:00:21]}  h4 {[%clk 0:00:09]} 54. gxh4 {[%clk 0:00:21]}  g3 {[%clk 0:00:08]} 55. Be4 {[%clk 0:00:21]}  Nf8 {[%clk 0:00:07]} 56. h5 {[%clk 0:00:20]}  Ne6 {[%clk 0:00:06]} 57. Rf6 {[%clk 0:00:21]}  Nf8 {[%clk 0:00:05]} 58. Kf4 {[%clk 0:00:19]}  Rd4 {[%clk 0:00:04]} 59. Rf5 {[%clk 0:00:16]}  Ne6+ {[%clk 0:00:03]} 60. Ke3 {[%clk 0:00:16]}  Rxe4+ {[%clk 0:00:03]} 61. Kf3 {[%clk 0:00:15]}  Rxb4 {[%clk 0:00:02]} 62. Rf6 {[%clk 0:00:15]}  Nxc5 {[%clk 0:00:03]} 63. h6+ {[%clk 0:00:14]}  Kh7 {[%clk 0:00:03]} 64. Rd6 {[%clk 0:00:13]}  Rb3+ {[%clk 0:00:04]} 65. Kg2 {[%clk 0:00:12]}  Ne4 {[%clk 0:00:05]} 66. Re6 {[%clk 0:00:11]}  Rb2+ {[%clk 0:00:05]} 67. Kf3 {[%clk 0:00:12]}  g2 {[%clk 0:00:05]} 68. Re7+ {[%clk 0:00:12]}  Kxh6 {[%clk 0:00:05]} 69. Re8 {[%clk 0:00:13]}  Kg5 {[%clk 0:00:06]} 70. Rg8+ {[%clk 0:00:13]}  Kf5 {[%clk 0:00:06]} 71. Rxg2 {[%clk 0:00:12]}  Kxe5 {[%clk 0:00:07]} 72. Rxb2 {[%clk 0:00:11]}  Nd6 {[%clk 0:00:08]} 73. Ke2 {[%clk 0:00:11]}  Kd5 {[%clk 0:00:08]} 74. Kd3 {[%clk 0:00:11]}  b5 {[%clk 0:00:09]} 75. Rh2 {[%clk 0:00:12]}  Kc5 {[%clk 0:00:08]} 76. Rh5+ {[%clk 0:00:13]}  Kb6 {[%clk 0:00:08]} 77. Rh6 {[%clk 0:00:12]}  Nb7 {[%clk 0:00:09]} 78. Kd4 {[%clk 0:00:12]}  a5 {[%clk 0:00:10]} 79. Kc3 {[%clk 0:00:12]}  a4 {[%clk 0:00:11]} 80. Kb4 {[%clk 0:00:12]}  Nc5 {[%clk 0:00:11]} 81. Kc3 {[%clk 0:00:11]}  Na6 {[%clk 0:00:12]} 82. Rh5 {[%clk 0:00:11]}  Ka5 {[%clk 0:00:11]} 83. Rh6 {[%clk 0:00:11]}  c5 {[%clk 0:00:12]} 84. Rh8 {[%clk 0:00:10]}  c4 {[%clk 0:00:12]} 85. Rh5 {[%clk 0:00:10]}  a3 {[%clk 0:00:12]} 86. Rh2 {[%clk 0:00:07]}  Ka4 {[%clk 0:00:11]} 87. Rh8 {[%clk 0:00:06]}  b4+ {[%clk 0:00:11]} 88. Kxc4 {[%clk 0:00:06]}  a2 {[%clk 0:00:12]} 89. Ra8 {[%clk 0:00:06]}  Ka5 {[%clk 0:00:12]} 90. Kb3 {[%clk 0:00:03]}  a1=Q {[%clk 0:00:11]} 91. Rxa6+ {[%clk 0:00:04]}  Kxa6 {[%clk 0:00:11]} 92. Kxb4 {[%clk 0:00:05]}  Qa5+ {[%clk 0:00:11]} 93. Kb3 {[%clk 0:00:05]}  Kb6 {[%clk 0:00:12]} 94. Kc4 {[%clk 0:00:05]}  Kc6 {[%clk 0:00:13]} 95. Kb3 {[%clk 0:00:06]}  Kd5 {[%clk 0:00:13]} 96. Kc2 {[%clk 0:00:05]}  Kd4 {[%clk 0:00:14]} 97. Kb2 {[%clk 0:00:06]}  Qc3+ {[%clk 0:00:15]} 98. Ka2 {[%clk 0:00:06]}  Qb4 {[%clk 0:00:15]} 99. Ka1 {[%clk 0:00:07]}  Kc3 {[%clk 0:00:16]} 100. Ka2 {[%clk 0:00:07]}  Qb2# {[%clk 0:00:17]} 0-1


[Site "https://www.chess.com"]